bitfinex-derivatives/quotes_BTCF0:USTF0_20241210
["timestamp","ask_amount","ask_price","bid_price","bid_amount"]
[1733822101563,0.06729153,97651.0,97650.0,0.2451716]
[1733822101861,0.06729153,97651.0,97650.0,0.00213937]
[1733822104067,0.06729153,97651.0,97637.0,0.24303223]
[1733822104366,0.06729153,97651.0,97634.0,0.24303223]
[1733822104367,0.051182,97636.0,97634.0,0.24303223]
[1733822104559,0.36088,97638.0,97629.0,0.24303223]
[1733822104560,0.0332,97635.0,97629.0,0.24303223]
[1733822104753,0.051185,97631.0,97629.0,0.24303223]
[1733822105067,8e-05,97630.0,97628.0,0.24303223]
[1733822105257,8e-05,97630.0,97629.0,0.24303223]
[1733822105460,0.3608,97630.0,97627.0,0.051187]
[1733822105864,0.3608,97630.0,97629.0,0.24328558]
[1733822106164,0.3608,97630.0,97627.0,0.29447258]
[1733822106362,0.3608,97630.0,97627.0,0.051187]
[1733822107166,8e-05,97628.0,97627.0,0.29447258]
[1733822107368,0.051266,97628.0,97627.0,0.009]
[1733822107559,0.051266,97628.0,97606.0,0.36571013]
[1733822107560,0.051191,97618.0,97617.0,0.24328558]
[1733822107868,0.051191,97618.0,97605.0,0.36571013]
[1733822107869,0.051193,97615.0,97613.0,0.24328558]
[1733822108060,0.051272,97618.0,97615.0,0.051193]
[1733822108367,0.051272,97618.0,97613.0,0.24352601]
[1733822108368,0.051273,97614.0,97613.0,0.24352601]
[1733822108559,0.051273,97614.0,97612.0,0.24352601]
[1733822108959,0.051273,97614.0,97611.0,0.24352601]
[1733822108960,0.051195,97612.0,97611.0,0.24352601]
[1733822109262,8e-05,97612.0,97607.0,0.19]
[1733822109464,0.3608,97608.0,97607.0,0.19]
[1733822109769,0.36088,97608.0,97607.0,0.19]
[1733822110569,0.36088,97608.0,97607.0,0.193]
[1733822111063,0.36188,97608.0,97607.0,0.192]
[1733822111660,0.36188,97608.0,97607.0,0.43952601]
[1733822111856,0.00108,97608.0,97607.0,0.196]
[1733822112061,0.00108,97608.0,97607.0,0.50022778]
[1733822112255,0.00108,97608.0,97607.0,0.495718]
[1733822113459,0.00108,97608.0,97607.0,0.493718]
[1733822115371,0.00108,97608.0,97607.0,0.194]
[1733822115568,0.00208,97608.0,97607.0,0.196]
[1733822115773,0.00208,97608.0,97607.0,0.006]
[1733822116368,0.00108,97608.0,97607.0,0.25240636]
[1733822116573,0.00208,97608.0,97607.0,0.009]
[1733822117463,0.053277,97608.0,97607.0,0.009]
[1733822117665,0.052277,97608.0,97607.0,0.009]
[1733822117864,0.053277,97608.0,97607.0,0.009]
[1733822118069,0.053277,97608.0,97607.0,0.199]
[1733822119066,0.053277,97608.0,97607.0,0.009]
[1733822119467,0.053277,97608.0,97607.0,0.199]
[1733822119769,0.053277,97608.0,97607.0,0.009]
[1733822120570,0.051202,97597.0,97595.0,0.2434196]
[1733822120777,0.053277,97608.0,97594.0,0.2434196]
[1733822120778,0.051203,97595.0,97594.0,0.2434196]
[1733822120966,0.3608,97596.0,97592.0,0.2434196]
[1733822120967,0.36088,97596.0,97592.0,0.2434196]
[1733822121163,0.051206,97591.0,97587.0,0.2434196]
[1733822121374,0.051206,97591.0,97588.0,5.736e-05]
[1733822121577,0.3608,97596.0,97588.0,5.736e-05]
[1733822121578,0.051206,97590.0,97588.0,5.736e-05]
[1733822121973,0.3608,97596.0,97594.0,0.051203]
[1733822122275,0.001,97597.0,97596.0,0.051203]
[1733822122473,0.001,97597.0,97596.0,0.115503]
[1733822122782,0.001,97597.0,97596.0,0.115543]
[1733822123474,0.00975526,97600.0,97596.0,0.115543]
[1733822123682,0.00975526,97600.0,97596.0,0.305543]
[1733822123683,0.051202,97598.0,97596.0,0.305543]
[1733822123883,0.051202,97598.0,97596.0,0.305503]
[1733822124387,0.001,97597.0,97596.0,0.308503]
[1733822124881,0.001,97598.0,97596.0,0.308503]
[1733822125286,0.001,97598.0,97596.0,0.312503]
[1733822125477,0.37068965,97604.0,97596.0,0.309503]
[1733822125673,0.001,97597.0,97596.0,0.2613]
[1733822127290,0.001,97597.0,97596.0,0.007]
[1733822127482,0.001,97597.0,97588.0,5.736e-05]
[1733822127682,0.412007,97589.0,97588.0,5.736e-05]
[1733822127887,0.412087,97589.0,97588.0,5.736e-05]
[1733822128591,0.36088,97589.0,97588.0,5.736e-05]
[1733822128788,0.001,97597.0,97595.0,0.051203]
[1733822129091,0.05119,97621.0,97601.0,0.0512]
[1733822129092,0.051197,97608.0,97601.0,0.0512]
[1733822129292,0.051197,97608.0,97596.0,0.3927]
[1733822129293,0.051195,97611.0,97605.0,0.051198]
[1733822129488,0.051195,97611.0,97607.0,4e-05]
[1733822129790,0.051192,97617.0,97611.0,0.051195]
[1733822130091,0.3608,97621.0,97611.0,0.051195]
[1733822130092,0.051194,97614.0,97611.0,0.051195]
[1733822130298,0.37042773,97621.0,97611.0,0.051195]
[1733822130490,0.051194,97613.0,97611.0,0.051195]
[1733822130993,0.47108311,97621.0,97598.0,0.2434196]
[1733822130994,0.001,97608.0,97598.0,0.2434196]
[1733822131188,0.001,97608.0,97593.0,0.30422795]
[1733822131189,0.051203,97595.0,97593.0,0.24337058]
[1733822131390,0.3608,97595.0,97590.0,0.051206]
[1733822131584,0.3608,97595.0,97591.0,0.24337058]
[1733822131585,0.051205,97593.0,97591.0,0.24337058]
[1733822131995,0.051205,97593.0,97590.0,0.051206]
[1733822132296,0.3608,97604.0,97602.0,0.0512]
[1733822132593,0.3608,97604.0,97603.0,0.03034]
[1733822132892,0.051197,97607.0,97603.0,0.03034]
[1733822133098,0.051197,97607.0,97606.0,0.24358307]
[1733822133393,0.051197,97607.0,97606.0,4e-05]
[1733822135304,0.051197,97607.0,97606.0,0.00204]
[1733822139204,0.411997,97607.0,97606.0,0.00204]
[1733822141306,0.42174115,97607.0,97606.0,0.00204]
[1733822141507,0.051203,97596.0,97595.0,0.244006]
[1733822141806,0.051203,97596.0,97588.0,0.30428531]
[1733822141807,0.051204,97594.0,97593.0,0.244006]
[1733822142214,8e-05,97594.0,97591.0,0.244006]
[1733822142515,0.051206,97590.0,97588.0,5.736e-05]
[1733822142704,0.3608,97589.0,97588.0,5.736e-05]
[1733822143010,0.36088,97589.0,97588.0,5.736e-05]
[1733822144504,0.36188,97589.0,97588.0,0.00205736]
[1733822144905,0.36188,97589.0,97588.0,0.30628531]
[1733822145312,0.36188,97589.0,97588.0,0.00205736]
[1733822145610,0.36288,97589.0,97588.0,0.00205736]
[1733822146017,0.42408,97589.0,97588.0,0.00205736]
[1733822146813,0.45628,97589.0,97588.0,0.00205736]
[1733822149611,0.45628,97589.0,97569.0,0.24421353]
[1733822149612,0.051214,97574.0,97569.0,0.24421353]
[1733822149807,0.3608,97570.0,97567.0,0.24421353]
[1733822150120,0.3608,97570.0,97559.0,0.30422795]
[1733822150121,0.051217,97569.0,97562.0,0.24421353]
[1733822150310,0.05122,97564.0,97562.0,0.24421353]
[1733822150511,0.051221,97562.0,97561.0,0.24421353]
[1733822150705,0.051221,97562.0,97560.0,0.051222]
[1733822150906,8e-05,97562.0,97561.0,0.051221]
[1733822152611,0.00108,97562.0,97561.0,0.051221]
[1733822153507,0.00208,97562.0,97561.0,0.051221]
[1733822153717,0.00208,97562.0,97561.0,0.29513036]
[1733822154109,0.00208,97562.0,97561.0,0.051221]
[1733822154110,0.053301,97562.0,97561.0,0.051221]
[1733822154313,0.051222,97559.0,97558.0,0.0311]
[1733822154913,0.051222,97559.0,97558.0,0.27498429]
[1733822155218,0.051222,97559.0,97558.0,0.0311]
[1733822155419,0.051222,97559.0,97553.0,0.24388429]
[1733822155621,0.051227,97550.0,97549.0,0.24388429]
[1733822155921,0.051227,97550.0,97548.0,0.24388429]
[1733822156319,8e-05,97549.0,97548.0,0.24388429]
[1733822156626,8e-05,97549.0,97546.0,0.27698429]
[1733822156922,8e-05,97547.0,97546.0,0.27698429]
[1733822157117,8e-05,97547.0,97546.0,0.0331]
[1733822159619,0.00108,97547.0,97546.0,0.0331]
[1733822159820,0.00208,97547.0,97546.0,0.0331]
[1733822161022,0.051233,97539.0,97537.0,0.60458495]
[1733822161217,0.051233,97539.0,97523.0,0.36571013]
[1733822161218,0.10273538,97547.0,97534.0,0.24378495]
[1733822161417,0.051236,97534.0,97531.0,0.081937]
[1733822161620,0.3608,97544.0,97531.0,0.081937]
[1733822161621,8e-05,97535.0,97531.0,0.0307]
[1733822161819,0.10065538,97541.0,97531.0,0.0307]
[1733822161820,0.051317,97532.0,97531.0,0.0307]
[1733822163119,0.052317,97532.0,97531.0,0.0307]
[1733822163921,0.00108,97532.0,97531.0,0.0307]
[1733822164123,0.00108,97532.0,97531.0,0.27448495]
[1733822164322,0.00978317,97553.0,97550.0,0.051227]
[1733822164520,0.051227,97551.0,97550.0,0.051227]
[1733822165928,0.051227,97551.0,97550.0,0.2337266]
[1733822166224,0.052227,97551.0,97550.0,0.051227]
[1733822166528,0.052227,97551.0,97548.0,0.1824996]
[1733822166529,0.051227,97550.0,97548.0,0.1824996]
[1733822166926,0.051228,97548.0,97546.0,0.1824996]
[1733822167131,0.051229,97546.0,97545.0,0.0322]
[1733822167438,8e-05,97546.0,97545.0,0.0322]
[1733822167623,8e-05,97546.0,97545.0,0.425]
[1733822168323,8e-05,97546.0,97545.0,0.66828327]
[1733822168530,8e-05,97546.0,97545.0,0.425]
[1733822169426,0.00108,97546.0,97545.0,0.426]
[1733822169629,0.00108,97546.0,97545.0,0.73022795]
[1733822170228,0.051218,97568.0,97553.0,0.051226]
[1733822170423,0.051218,97568.0,97553.0,0.412026]
[1733822170619,0.10065538,97570.0,97553.0,0.412026]
[1733822171025,0.051301,97562.0,97553.0,0.412026]
[1733822171228,8e-05,97562.0,97553.0,0.412026]
[1733822171429,8e-05,97562.0,97553.0,0.413026]
[1733822171929,8e-05,97562.0,97553.0,0.71167814]
[1733822171930,0.051223,97559.0,97553.0,0.71167814]
[1733822172133,0.051223,97559.0,97553.0,0.71774766]
[1733822172520,0.051223,97559.0,97553.0,1.01909169]
[1733822172521,0.00108,97554.0,97553.0,1.01909169]
[1733822173126,0.00108,97554.0,97553.0,0.71428939]
[1733822173327,0.00108,97554.0,97553.0,1.01909136]
[1733822173527,0.00108,97554.0,97553.0,0.71428939]
[1733822174129,8e-05,97562.0,97561.0,0.051221]
[1733822174326,0.3608,97585.0,97561.0,0.71128439]
[1733822174534,0.3608,97585.0,97583.0,0.23405214]
[1733822174735,0.3608,97585.0,97584.0,0.21314214]
[1733822175033,0.3608,97585.0,97584.0,0.0303]
[1733822175334,0.10065538,97593.0,97587.0,0.051207]
[1733822175335,0.051205,97593.0,97587.0,0.051207]
[1733822175526,0.3608,97595.0,97587.0,0.2949858]
[1733822175721,0.3608,97595.0,97588.0,4e-05]
[1733822176325,0.37052953,97595.0,97588.0,4e-05]
[1733822176523,0.37112954,97595.0,97588.0,4e-05]
[1733822176724,0.051206,97590.0,97588.0,4e-05]
[1733822176924,0.0090993,97589.0,97588.0,4e-05]
[1733822177737,0.0140993,97589.0,97588.0,4e-05]
[1733822179436,0.0140993,97589.0,97588.0,0.24359793]
[1733822179631,0.0140993,97589.0,97588.0,4e-05]
[1733822183530,0.05121,97582.0,97580.0,0.18236055]
[1733822183730,0.05121,97582.0,97566.0,0.3047369]
[1733822183731,0.3608,97581.0,97566.0,0.18236055]
[1733822183934,0.051218,97567.0,97563.0,0.18236055]
[1733822184139,0.051219,97565.0,97563.0,0.18236055]
[1733822184335,0.05122,97563.0,97562.0,0.18236055]
[1733822184637,8e-05,97563.0,97562.0,0.051221]
[1733822185135,0.0513,97563.0,97561.0,4e-05]
[1733822185540,8e-05,97562.0,97561.0,4e-05]
[1733822187037,0.06318,97562.0,97561.0,4e-05]
[1733822187241,0.09648,97562.0,97561.0,4e-05]
[1733822187441,0.09648,97562.0,97561.0,0.00304]
[1733822187844,0.09648,97562.0,97535.0,0.0305]
[1733822187845,0.051231,97542.0,97541.0,0.18251357]
[1733822188041,0.051231,97542.0,97535.0,0.0305]
[1733822188042,0.051231,97542.0,97540.0,0.18252704]
[1733822188343,0.051311,97542.0,97540.0,0.18252704]
[1733822188538,0.051311,97542.0,97541.0,0.18252704]
[1733822188943,0.051231,97542.0,97541.0,0.18252704]
[1733822189247,0.051231,97542.0,97540.0,0.18252704]
[1733822189443,0.051233,97539.0,97537.0,0.18252704]
[1733822189954,0.001,97542.0,97538.0,0.051233]
[1733822190139,0.002,97542.0,97538.0,0.051233]
[1733822190336,0.002,97542.0,97541.0,0.051272]
[1733822190745,0.001,97542.0,97541.0,0.59458954]
[1733822190944,0.001,97542.0,97541.0,0.412072]
[1733822191145,0.3608,97553.0,97541.0,0.412072]
[1733822191146,0.10065538,97551.0,97541.0,0.412072]
[1733822191338,0.10065538,97551.0,97544.0,0.05123]
[1733822191545,0.051229,97546.0,97544.0,0.05123]
[1733822192441,0.051229,97546.0,97544.0,0.23371164]
[1733822193448,0.001,97546.0,97545.0,0.18248164]
[1733822193651,0.001,97546.0,97544.0,0.29453706]
[1733822193838,0.001,97546.0,97544.0,0.05123]
[1733822194153,8e-05,97545.0,97544.0,0.2956459]
[1733822194449,8e-05,97545.0,97544.0,0.05223]
[1733822196147,8e-05,97545.0,97544.0,0.05123]
[1733822196442,0.00108,97545.0,97544.0,0.05223]
[1733822196640,0.00208,97545.0,97544.0,0.05223]
[1733822198551,0.00208,97545.0,97544.0,0.001]
[1733822198744,0.00208,97545.0,97544.0,0.18357573]
[1733822199846,0.36288,97545.0,97544.0,0.001]
[1733822200445,0.39558,97545.0,97544.0,0.001]
[1733822201054,0.42698,97545.0,97544.0,0.001]
[1733822203148,0.42698,97545.0,97544.0,0.008]
[1733822203348,0.47821,97545.0,97544.0,0.008]
[1733822204055,0.44681,97545.0,97544.0,0.008]
[1733822204550,0.41411,97545.0,97544.0,0.008]
[1733822211550,0.36288,97545.0,97533.0,0.18257573]
[1733822211752,0.051235,97534.0,97533.0,0.18257573]
[1733822211956,0.051315,97534.0,97532.0,0.18257573]
[1733822212255,8e-05,97533.0,97532.0,0.18257573]
[1733822212466,8e-05,97533.0,97529.0,0.24341718]
[1733822212658,0.051238,97530.0,97529.0,0.24341718]
[1733822212957,0.051318,97530.0,97529.0,0.24341718]
[1733822213550,0.051318,97530.0,97527.0,0.3608]
[1733822213956,0.051238,97530.0,97528.0,0.051239]
[1733822214454,0.052238,97530.0,97529.0,0.001]
[1733822214851,0.053238,97530.0,97529.0,0.001]
[1733822216147,0.052238,97530.0,97528.0,0.3559759]
[1733822216352,0.053238,97530.0,97529.0,0.006]
[1733822216558,0.053238,97530.0,97529.0,0.3107369]
[1733822216953,0.053238,97530.0,97529.0,0.3117369]
[1733822217153,0.053238,97530.0,97529.0,0.61170117]
[1733822218451,0.053238,97530.0,97529.0,0.3117369]
[1733822219051,0.052238,97530.0,97529.0,0.3057369]
[1733822219257,0.053238,97530.0,97529.0,0.3057369]
[1733822219658,0.053238,97530.0,97529.0,0.001]
[1733822220562,0.053238,97530.0,97529.0,0.007]
[1733822220762,0.053238,97530.0,97529.0,0.058238]
[1733822221068,0.053238,97530.0,97529.0,0.007]
[1733822221459,0.053238,97530.0,97529.0,0.3117369]
[1733822221859,0.002,97530.0,97529.0,0.3117369]
[1733822223565,0.002,97530.0,97529.0,0.61229135]
[1733822223866,0.002,97530.0,97529.0,0.3117369]
[1733822224464,0.002,97530.0,97529.0,0.30748339]
[1733822225269,0.02285116,97530.0,97529.0,0.30748339]
[1733822226269,0.002,97530.0,97529.0,0.30748339]
[1733822230670,0.053238,97530.0,97529.0,0.30748339]
[1733822230971,0.002,97530.0,97529.0,0.35872139]
[1733822231565,0.053238,97530.0,97529.0,0.35872139]
[1733822234276,0.053238,97530.0,97529.0,0.30748339]
[1733822235366,0.053238,97530.0,97529.0,0.007]
[1733822237977,0.057138,97530.0,97529.0,0.007]
[1733822241076,0.057138,97530.0,97519.0,0.36568429]
[1733822241077,0.051239,97527.0,97519.0,0.30569538]
[1733822241277,0.051239,97527.0,97500.0,0.1]
[1733822241278,0.051241,97524.0,97523.0,0.24456767]
[1733822241467,0.051249,97509.0,97507.0,0.36568429]
[1733822241670,0.051249,97509.0,97500.0,0.1]
[1733822241671,0.3608,97508.0,97500.0,0.1]
[1733822241872,0.36088,97508.0,97500.0,0.1]
[1733822242072,8e-05,97501.0,97500.0,0.1]
[1733822242779,0.050332,97502.0,97500.0,0.1]
[1733822243183,0.050332,97502.0,97500.0,0.106]
[1733822243383,0.001,97501.0,97500.0,0.107]
[1733822245075,0.001,97501.0,97500.0,0.101]
[1733822245986,0.001,97501.0,97500.0,0.1]
[1733822246376,0.001,97501.0,97500.0,0.28304841]
[1733822246681,0.002,97501.0,97500.0,0.1]
[1733822246872,0.002,97501.0,97500.0,0.28304841]
[1733822247283,0.002,97501.0,97500.0,0.1]
[1733822250678,0.002,97501.0,97500.0,0.08109]
[1733822251783,0.3059,97501.0,97475.0,0.18304841]
[1733822251985,0.3059,97501.0,97474.0,0.18304841]
[1733822251986,0.055166,97476.0,97474.0,0.18304841]
[1733822252175,0.055166,97476.0,97474.0,0.23431541]
[1733822252176,0.00398,97476.0,97474.0,0.23431541]
[1733822252377,0.051262,97483.0,97481.0,0.051263]
[1733822252581,0.10065538,97491.0,97476.0,0.18287232]
[1733822252774,0.3608,97492.0,97475.0,5.702e-05]
[1733822252775,0.10065538,97485.0,97482.0,4e-05]
[1733822252979,0.10065538,97485.0,97475.0,0.05132302]
[1733822252980,0.051258,97491.0,97490.0,4e-05]
[1733822255688,0.052258,97491.0,97490.0,4e-05]
[1733822255891,0.052258,97491.0,97490.0,0.051299]
[1733822255892,0.001,97491.0,97490.0,0.051299]
[1733822256075,0.37052682,97492.0,97490.0,0.051299]
[1733822256076,0.3608,97492.0,97490.0,0.051299]
[1733822256281,0.051254,97500.0,97490.0,0.051299]
[1733822256282,0.051254,97500.0,97491.0,0.051258]
[1733822256576,0.051254,97500.0,97499.0,4e-05]
[1733822256782,0.00052001,97501.0,97499.0,4e-05]
[1733822256983,0.0098247,97501.0,97499.0,4e-05]
[1733822257281,0.051252,97503.0,97500.0,4e-05]
[1733822257692,0.051252,97503.0,97502.0,4e-05]
[1733822259580,0.052252,97503.0,97502.0,0.00104]
[1733822259781,0.001,97503.0,97502.0,0.052292]
[1733822263595,0.001,97503.0,97502.0,0.23516432]
[1733822264486,0.001,97503.0,97502.0,0.052292]
[1733822264786,0.001,97503.0,97502.0,0.23532562]
[1733822264993,0.001,97503.0,97502.0,0.052292]
[1733822269788,0.001,97503.0,97502.0,0.413092]
[1733822270386,0.001,97503.0,97502.0,0.70026065]
[1733822271896,0.001,97503.0,97502.0,1.00566632]
[1733822272095,0.001,97503.0,97502.0,0.70026065]
[1733822272801,0.001,97503.0,97502.0,1.0056456]
[1733822273290,0.001,97503.0,97502.0,0.70026065]
[1733822273491,0.001,97503.0,97502.0,1.0056252]
[1733822273692,0.001,97503.0,97502.0,1.00570138]
[1733822273892,0.3608,97517.0,97516.0,0.051245]
[1733822274088,0.1228344,97533.0,97527.0,0.051239]
[1733822274089,0.0921258,97528.0,97527.0,0.051239]
[1733822274400,0.412038,97529.0,97527.0,0.051279]
[1733822274401,0.05175801,97529.0,97527.0,0.051279]
[1733822274589,0.00012547,97530.0,97529.0,0.051238]
[1733822274986,0.00012547,97530.0,97529.0,0.051278]
[1733822276802,0.00412547,97530.0,97529.0,0.051278]
[1733822277694,0.01112547,97530.0,97529.0,0.051278]
[1733822284004,0.0921258,97565.0,97556.0,0.051224]
[1733822284201,0.18358251,97589.0,97581.0,0.051211]
[1733822284202,0.0921258,97583.0,97581.0,0.051211]
[1733822284404,0.0302,97593.0,97576.0,0.3608]
[1733822284697,0.081405,97593.0,97592.0,4e-05]
[1733822284899,0.04032989,97593.0,97592.0,0.051245]
[1733822285299,9.292e-05,97593.0,97592.0,0.051245]
[1733822286404,0.00509292,97593.0,97592.0,0.051245]
[1733822287106,0.00509292,97593.0,97592.0,0.052245]
[1733822287107,0.01309292,97593.0,97592.0,0.052245]
[1733822288809,0.00809292,97593.0,97592.0,0.052245]
[1733822289006,0.00809292,97593.0,97592.0,0.00504]
[1733822289598,0.00809292,97593.0,97592.0,0.00104]
[1733822289802,0.00809292,97593.0,97592.0,0.00504]
[1733822290706,9.292e-05,97593.0,97592.0,0.00404]
[1733822291006,0.00109292,97593.0,97592.0,0.01304]
[1733822291414,0.00109292,97593.0,97592.0,0.00904]
[1733822291712,0.00109292,97593.0,97592.0,0.01304]
[1733822294508,0.00109292,97593.0,97592.0,0.01204]
[1733822295014,0.00109292,97593.0,97592.0,0.01104]
[1733822295707,9.292e-05,97593.0,97592.0,0.00304]
[1733822296011,0.00109292,97593.0,97592.0,0.01104]
[1733822297001,9.2e-07,97593.0,97592.0,0.01104]
[1733822297203,0.00052001,97619.0,97617.0,0.051192]
[1733822297402,0.02087932,97624.0,97613.0,0.3608]
[1733822297403,0.07206732,97624.0,97613.0,0.3608]
[1733822297605,0.07206732,97624.0,97621.0,0.05119]
[1733822297810,0.051189,97623.0,97621.0,0.05119]
[1733822298117,0.051191,97620.0,97618.0,4e-05]
[1733822298412,0.051191,97620.0,97616.0,0.051192]
[1733822298610,0.02880982,97624.0,97613.0,0.3608]
[1733822298804,0.051197,97607.0,97606.0,0.051198]
[1733822299314,0.051197,97607.0,97592.0,0.0644]
[1733822299315,0.051201,97600.0,97599.0,0.051201]
[1733822299812,8e-05,97600.0,97599.0,0.051201]
[1733822300011,8e-05,97600.0,97599.0,0.412001]
[1733822301616,8e-05,97600.0,97599.0,0.414001]
[1733822302521,8e-05,97600.0,97599.0,0.421001]
[1733822302522,0.00108,97600.0,97599.0,0.421001]
[1733822304312,0.3608,97621.0,97599.0,0.421001]
[1733822304313,0.10065538,97610.0,97607.0,0.051197]
[1733822304516,0.051196,97610.0,97609.0,0.3608]
[1733822304716,0.051196,97610.0,97609.0,0.36084]
[1733822304905,0.051196,97610.0,97609.0,4e-05]
[1733822306114,0.051196,97610.0,97609.0,0.00204]
[1733822308415,0.052196,97610.0,97609.0,0.00104]
[1733822308913,0.052196,97610.0,97609.0,4e-05]
[1733822309115,0.052196,97610.0,97609.0,0.00104]
[1733822309313,0.06003441,97610.0,97609.0,0.00104]
[1733822309509,0.06003441,97610.0,97581.0,0.60229347]
[1733822309510,0.051205,97592.0,97589.0,0.18240108]
[1733822309707,0.051207,97588.0,97587.0,0.18247536]
[1733822309907,0.051207,97588.0,97587.0,7.428e-05]
[1733822311416,0.0600462,97588.0,97567.0,0.18240108]
[1733822311718,0.05122,97564.0,97563.0,0.18240108]
[1733822311919,8e-05,97568.0,97560.0,0.18240108]
[1733822312113,0.3608,97570.0,97555.0,0.24308924]
[1733822312114,0.051223,97557.0,97555.0,0.24308924]
[1733822312307,0.3608,97562.0,97554.0,0.051225]
[1733822312308,0.051224,97555.0,97554.0,0.29431424]
[1733822312514,0.051224,97555.0,97554.0,0.05130467]
[1733822312720,0.051304,97555.0,97554.0,0.05130467]
[1733822312926,0.051304,97555.0,97554.0,7.967e-05]
[1733822313821,0.051304,97555.0,97554.0,0.24360838]
[1733822314222,0.051304,97555.0,97554.0,7.967e-05]
[1733822314814,0.051304,97555.0,97554.0,0.00707967]
[1733822314815,0.05239838,97555.0,97554.0,0.00707967]
[1733822315212,0.05339838,97555.0,97554.0,0.01207967]
[1733822315822,0.00117438,97555.0,97554.0,0.01107967]
[1733822316022,0.00017438,97555.0,97554.0,0.00607967]
[1733822316514,0.00017438,97555.0,97554.0,0.00507967]
[1733822317924,0.00017438,97555.0,97554.0,0.00407967]
[1733822318319,0.00017438,97555.0,97554.0,0.00107967]
[1733822318524,0.00017438,97555.0,97554.0,0.00407967]
[1733822318923,0.00017438,97555.0,97554.0,0.00107967]
[1733822320722,0.00017438,97555.0,97554.0,0.36187967]
[1733822321228,0.3608,97596.0,97577.0,0.051213]
[1733822321229,0.051211,97581.0,97577.0,0.051213]
[1733822321414,0.051211,97581.0,97571.0,0.3608]
[1733822321730,0.10065538,97581.0,97571.0,0.3608]
[1733822321911,0.10065538,97581.0,97577.0,0.051213]
[1733822321912,0.051213,97578.0,97577.0,0.051213]
[1733822323323,0.058213,97578.0,97577.0,0.051213]
[1733822324425,0.011,97578.0,97577.0,0.051213]
[1733822325032,0.02010542,97580.0,97577.0,0.051213]
[1733822325226,0.011,97578.0,97577.0,0.051213]
[1733822325921,0.051214,97576.0,97571.0,0.3608]
[1733822326123,0.051214,97576.0,97572.0,0.051215]
[1733822326323,0.007,97578.0,97572.0,0.051215]
[1733822326324,0.051215,97574.0,97572.0,0.051215]
[1733822326528,0.03110542,97580.0,97568.0,0.18209473]
[1733822326529,0.3608,97575.0,97568.0,0.18209473]
[1733822326824,0.3608,97575.0,97567.0,0.051218]
[1733822327930,0.051217,97569.0,97567.0,0.051218]
[1733822328624,0.002,97575.0,97563.0,0.3608]
[1733822328831,0.002,97575.0,97572.0,0.051215]
[1733822329019,0.002,97575.0,97574.0,4e-05]
[1733822329220,0.051214,97576.0,97574.0,4e-05]
[1733822329626,0.051214,97576.0,97572.0,0.051215]
[1733822329627,0.051214,97576.0,97575.0,4e-05]
[1733822330626,0.057214,97576.0,97575.0,4e-05]
[1733822331529,0.061214,97576.0,97575.0,4e-05]
[1733822332028,0.055214,97576.0,97575.0,4e-05]
[1733822332235,0.061214,97576.0,97575.0,4e-05]
[1733822332733,0.01,97576.0,97575.0,4e-05]
[1733822334321,0.3708,97576.0,97575.0,4e-05]
[1733822340832,0.01,97576.0,97575.0,4e-05]
[1733822343631,0.01,97576.0,97575.0,0.18266484]
[1733822343830,0.01,97576.0,97575.0,4e-05]
[1733822344935,0.10197462,97576.0,97575.0,4e-05]
[1733822345135,0.01,97576.0,97575.0,4e-05]
[1733822345837,0.01,97576.0,97575.0,0.54362251]
[1733822346031,0.01,97576.0,97575.0,0.39224]
[1733822346230,0.01,97576.0,97575.0,0.40029582]
[1733822346429,7.973e-05,97584.0,97583.0,0.05121]
[1733822346630,7.973e-05,97584.0,97583.0,0.70049871]
[1733822347337,7.973e-05,97584.0,97583.0,0.70053871]
[1733822347541,0.00507973,97584.0,97583.0,0.70153871]
[1733822347934,0.01407973,97584.0,97583.0,0.70153871]
[1733822348126,0.01407973,97584.0,97583.0,0.00104]
[1733822349034,0.00907973,97584.0,97583.0,4e-05]
[1733822349239,0.00907973,97584.0,97583.0,0.00204]
[1733822349735,7.973e-05,97584.0,97583.0,0.00204]
[1733822349927,7.973e-05,97584.0,97583.0,0.00704]
[1733822350434,7.973e-05,97584.0,97583.0,0.00604]
[1733822350843,0.36087973,97584.0,97583.0,0.00604]
[1733822351234,0.36892765,97584.0,97583.0,0.00604]
[1733822351943,0.49176205,97584.0,97583.0,0.00604]
[1733822352736,0.49176205,97584.0,97583.0,0.00404]
[1733822353536,0.49376205,97584.0,97583.0,4e-05]
[1733822353937,0.37092765,97584.0,97583.0,4e-05]
[1733822355632,0.05122,97564.0,97563.0,0.18275148]
[1733822355836,0.051221,97562.0,97561.0,0.18275148]
[1733822356032,0.051221,97562.0,97560.0,0.18275148]
[1733822356338,0.051223,97557.0,97555.0,0.18279914]
[1733822356536,0.051224,97555.0,97554.0,7.967e-05]
[1733822356939,0.051304,97555.0,97554.0,7.967e-05]
[1733822357933,0.051304,97555.0,97554.0,0.00207967]
[1733822359041,0.051304,97555.0,97554.0,0.00307967]
[1733822359647,0.051304,97555.0,97554.0,0.00207967]
[1733822360445,0.051304,97555.0,97554.0,0.00107967]
[1733822361047,0.051304,97555.0,97554.0,7.967e-05]
[1733822361243,8e-05,97555.0,97541.0,0.18279914]
[1733822361552,0.051233,97538.0,97536.0,0.0307]
[1733822362145,8e-05,97537.0,97536.0,0.0307]
[1733822362339,8e-05,97537.0,97528.0,0.21569914]
[1733822362340,8e-05,97537.0,97531.0,9.173e-05]
[1733822362555,0.412037,97532.0,97531.0,9.173e-05]
[1733822362738,0.412117,97532.0,97531.0,9.173e-05]
[1733822364048,0.413117,97532.0,97531.0,0.00909173]
[1733822365037,0.413117,97532.0,97531.0,0.01409173]
[1733822366240,0.42163902,97532.0,97531.0,0.01409173]
[1733822367251,0.37040202,97532.0,97531.0,0.06532873]
[1733822367643,0.00108,97532.0,97531.0,0.06532873]
[1733822374647,0.00108,97532.0,97531.0,0.24812787]